[Event "*** Titled Tuesday Blitz"]
[Site "Chess.com"]
[Date "2021.03.09"]
[Round "2"]
[White "hellokostya"]
[Black "GM_Crest"]
[Result "1/2-1/2"]
[WhiteElo "2531"]
[BlackElo "2786"]
[TimeControl "180+1"]
[EndTime "10:18:15 PST"]
[Termination "Game drawn by repetition"]

1. d4 {[%clk 0:03:00.9]} 1... d5 {[%clk 0:02:57.7]} 2. c4 {[%clk 0:03:00]} 2...
dxc4 {[%clk 0:02:57.9]} 3. e4 {[%clk 0:02:58.2]} 3... Nf6 {[%clk 0:02:57.3]} 4.
e5 {[%clk 0:02:58.1]} 4... Nd5 {[%clk 0:02:57.8]} 5. Bxc4 {[%clk 0:02:58]} 5...
Nb6 {[%clk 0:02:58.3]} 6. Bb3 {[%clk 0:02:52.7]} 6... Nc6 {[%clk 0:02:58]} 7.
Be3 {[%clk 0:02:51.2]} 7... Bf5 {[%clk 0:02:50.1]} 8. Nc3 {[%clk 0:02:49.3]}
8... e6 {[%clk 0:02:50]} 9. Nge2 {[%clk 0:02:48.1]} 9... Be7 {[%clk 0:02:44.6]}
10. O-O {[%clk 0:02:47.1]} 10... O-O {[%clk 0:02:44.3]} 11. Ng3 {[%clk
0:02:46.8]} 11... Bg6 {[%clk 0:02:43.7]} 12. f4 {[%clk 0:02:44.6]} 12... Qd7
{[%clk 0:02:43.6]} 13. d5 {[%clk 0:02:32.3]} 13... exd5 {[%clk 0:02:03.6]} 14.
Bxb6 {[%clk 0:02:31.3]} 14... axb6 {[%clk 0:01:58.4]} 15. f5 {[%clk 0:02:31.1]}
15... Nxe5 {[%clk 0:01:37.8]} 16. fxg6 {[%clk 0:02:27.9]} 16... c6 {[%clk
0:01:38.1]} 17. gxf7+ {[%clk 0:02:22.6]} 17... Rxf7 {[%clk 0:01:35.6]} 18. Rxf7
{[%clk 0:02:19.4]} 18... Nxf7 {[%clk 0:01:35.7]} 19. Qh5 {[%clk 0:02:14.8]}
19... g6 {[%clk 0:01:35.2]} 20. Qe2 {[%clk 0:02:10.8]} 20... Re8 {[%clk
0:01:34.1]} 21. Kh1 {[%clk 0:02:01.7]} 21... Bd6 {[%clk 0:01:31.3]} 22. Qf2
{[%clk 0:01:55.4]} 22... Ne5 {[%clk 0:01:31.2]} 23. Re1 {[%clk 0:01:53.2]} 23...
Ng4 {[%clk 0:01:30.2]} 24. Rxe8+ {[%clk 0:01:52.7]} 24... Qxe8 {[%clk
0:01:30.2]} 25. Qe2 {[%clk 0:01:49.7]} 25... Qxe2 {[%clk 0:01:14.8]} 26. Ncxe2
{[%clk 0:01:49.5]} 26... Nf2+ {[%clk 0:01:14.9]} 27. Kg1 {[%clk 0:01:49]} 27...
Nd3 {[%clk 0:01:15.5]} 28. Nc3 {[%clk 0:01:39.2]} 28... Nxb2 {[%clk 0:01:14.9]}
29. Nxd5 {[%clk 0:01:38.2]} 29... cxd5 {[%clk 0:01:14.8]} 30. Bxd5+ {[%clk
0:01:39.1]} 30... Kg7 {[%clk 0:01:14.8]} 31. Bxb7 {[%clk 0:01:40]} 31... Nd3
{[%clk 0:01:10.3]} 32. Ne4 {[%clk 0:01:38.5]} 32... Be5 {[%clk 0:01:04.5]} 33.
h3 {[%clk 0:01:33.1]} 33... Nb4 {[%clk 0:00:56.8]} 34. a4 {[%clk 0:01:27.9]}
34... Nd3 {[%clk 0:00:55.6]} 35. Kf1 {[%clk 0:01:26.3]} 35... Kf8 {[%clk
0:00:53.5]} 36. Ke2 {[%clk 0:01:23.9]} 36... Nf4+ {[%clk 0:00:53.2]} 37. Kf3
{[%clk 0:01:23.2]} 37... Ke7 {[%clk 0:00:53.4]} 38. h4 {[%clk 0:01:09.6]} 38...
Ne6 {[%clk 0:00:49.3]} 39. Bd5 {[%clk 0:01:01.4]} 39... h6 {[%clk 0:00:43.2]}
40. g4 {[%clk 0:00:56]} 40... Nf4 {[%clk 0:00:26.6]} 41. Bc4 {[%clk 0:00:52.7]}
41... Ne6 {[%clk 0:00:26.8]} 42. Bd5 {[%clk 0:00:51.1]} 42... Nf4 {[%clk
0:00:26.7]} 43. Bc4 {[%clk 0:00:51]} 43... Ne6 {[%clk 0:00:25.8]} 44. Bd5 {[%clk
0:00:50.7]} 1/2-1/2

[Event "*** Titled Tuesday Blitz"]
[Site "Chess.com"]
[Date "2021.03.09"]
[Round "2"]
[White "muchojogo"]
[Black "MrTattaglia"]
[Result "0-1"]
[WhiteElo "2361"]
[BlackElo "2883"]
[TimeControl "180+1"]
[EndTime "10:18:19 PST"]
[Termination "MrTattaglia won by resignation"]

1. d4 {[%clk 0:03:00.2]} 1... Nf6 {[%clk 0:02:59.6]} 2. Nf3 {[%clk 0:03:00.7]}
2... d5 {[%clk 0:02:58.7]} 3. Bf4 {[%clk 0:03:01.1]} 3... c5 {[%clk 0:02:58.4]}
4. e3 {[%clk 0:03:01.6]} 4... Nc6 {[%clk 0:02:58.5]} 5. Nbd2 {[%clk 0:03:01.5]}
5... Bg4 {[%clk 0:02:57.8]} 6. c3 {[%clk 0:03:00.4]} 6... e6 {[%clk 0:02:56.6]}
7. Be2 {[%clk 0:02:47.7]} 7... Bd6 {[%clk 0:02:55.6]} 8. Bxd6 {[%clk 0:02:19.9]}
8... Qxd6 {[%clk 0:02:54.6]} 9. dxc5 {[%clk 0:02:20.8]} 9... Qxc5 {[%clk
0:02:54.4]} 10. c4 {[%clk 0:02:18.6]} 10... Bxf3 {[%clk 0:02:42.9]} 11. Nxf3
{[%clk 0:02:13.8]} 11... dxc4 {[%clk 0:02:41.9]} 12. O-O {[%clk 0:02:13.9]}
12... O-O {[%clk 0:02:41.1]} 13. Rc1 {[%clk 0:02:13.3]} 13... b5 {[%clk
0:02:40.9]} 14. Qc2 {[%clk 0:01:33.6]} 14... Rac8 {[%clk 0:02:21.8]} 15. Rfd1
{[%clk 0:01:06.8]} 15... h6 {[%clk 0:02:14.1]} 16. h3 {[%clk 0:01:06.3]} 16...
a6 {[%clk 0:02:08.7]} 17. Nd4 {[%clk 0:01:00]} 17... Nxd4 {[%clk 0:02:07.4]} 18.
Rxd4 {[%clk 0:00:59.5]} 18... Nd5 {[%clk 0:01:52.1]} 19. Bf3 {[%clk 0:00:56.1]}
19... Nb4 {[%clk 0:01:51.7]} 20. Qb1 {[%clk 0:00:56.4]} 20... Qe5 {[%clk
0:01:47.5]} 21. b3 {[%clk 0:00:41.4]} 21... Nd3 {[%clk 0:01:45.4]} 22. Rc3
{[%clk 0:00:29.5]} 22... Qf6 {[%clk 0:01:32.4]} 23. bxc4 {[%clk 0:00:28.8]}
23... bxc4 {[%clk 0:01:33.3]} 24. Rcxc4 {[%clk 0:00:28.2]} 24... Ne5 {[%clk
0:01:25.4]} 25. Rxc8 {[%clk 0:00:26.1]} 25... Nxf3+ {[%clk 0:01:25.3]} 26. gxf3
{[%clk 0:00:26.5]} 26... Rxc8 {[%clk 0:01:25.7]} 27. Qe4 {[%clk 0:00:25.7]}
27... a5 {[%clk 0:01:23.1]} 28. Kg2 {[%clk 0:00:24.1]} 28... g6 {[%clk
0:01:22.2]} 29. Ra4 {[%clk 0:00:24.2]} 29... Rc5 {[%clk 0:01:21.4]} 30. f4
{[%clk 0:00:21.5]} 30... Kh7 {[%clk 0:01:18]} 31. Rd4 {[%clk 0:00:20.6]} 31...
Rb5 {[%clk 0:01:11.1]} 32. Rd7 {[%clk 0:00:20.4]} 32... Rb2 {[%clk 0:01:11.1]}
33. a4 {[%clk 0:00:17]} 33... Ra2 {[%clk 0:01:11]} 34. Qb7 {[%clk 0:00:16.1]}
34... Kg7 {[%clk 0:01:08.6]} 35. Qb5 {[%clk 0:00:13.6]} 35... Qc3 {[%clk
0:00:58.4]} 36. Qb7 {[%clk 0:00:11.4]} 36... Qf6 {[%clk 0:00:57.3]} 37. Qb5
{[%clk 0:00:11.9]} 37... g5 {[%clk 0:00:57.7]} 38. fxg5 {[%clk 0:00:11.1]} 38...
Qxf2+ {[%clk 0:00:57]} 0-1

[Event "*** Titled Tuesday Blitz"]
[Site "Chess.com"]
[Date "2021.03.09"]
[Round "2"]
[White "AldokhinIvan"]
[Black "Aleksey_Sorokin"]
[Result "0-1"]
[WhiteElo "2517"]
[BlackElo "2778"]
[TimeControl "180+1"]
[EndTime "10:18:20 PST"]
[Termination "Aleksey_Sorokin won on time"]

1. e4 {[%clk 0:03:00.9]} 1... c6 {[%clk 0:02:59.9]} 2. Nc3 {[%clk 0:03:00.7]}
2... d5 {[%clk 0:03:00.8]} 3. d4 {[%clk 0:03:01.6]} 3... dxe4 {[%clk 0:03:00.8]}
4. Nxe4 {[%clk 0:03:02.5]} 4... Nf6 {[%clk 0:03:01.2]} 5. Nxf6+ {[%clk
0:03:02.8]} 5... exf6 {[%clk 0:03:00.8]} 6. c3 {[%clk 0:03:03.4]} 6... Bd6
{[%clk 0:02:53.4]} 7. Bd3 {[%clk 0:03:02.8]} 7... O-O {[%clk 0:02:53.5]} 8. Qc2
{[%clk 0:03:02.7]} 8... Re8+ {[%clk 0:02:53.1]} 9. Ne2 {[%clk 0:03:02.8]} 9...
h5 {[%clk 0:02:53]} 10. O-O {[%clk 0:02:20]} 10... h4 {[%clk 0:02:38.2]} 11. Nf4
{[%clk 0:02:07.9]} 11... Nd7 {[%clk 0:02:21.8]} 12. Bh7+ {[%clk 0:01:58.3]}
12... Kh8 {[%clk 0:02:14.1]} 13. Bd3 {[%clk 0:01:39.2]} 13... Nf8 {[%clk
0:02:13.6]} 14. Bd2 {[%clk 0:01:26.6]} 14... Ne6 {[%clk 0:02:07.6]} 15. Nxe6
{[%clk 0:01:08.2]} 15... Bxe6 {[%clk 0:02:06.5]} 16. c4 {[%clk 0:01:07]} 16...
Bc7 {[%clk 0:02:04]} 17. Bc3 {[%clk 0:00:57.2]} 17... b5 {[%clk 0:01:55]} 18.
cxb5 {[%clk 0:00:47.4]} 18... Qd6 {[%clk 0:01:55]} 19. g3 {[%clk 0:00:46.2]}
19... h3 {[%clk 0:01:48]} 20. Be4 {[%clk 0:00:20]} 20... Bd5 {[%clk 0:01:38.8]}
21. Rae1 {[%clk 0:00:18]} 21... cxb5 {[%clk 0:01:34.2]} 22. f3 {[%clk
0:00:06.1]} 22... Bb6 {[%clk 0:01:32.2]} 23. Bxd5 {[%clk 0:00:04.5]} 23... Qxd5
{[%clk 0:01:32.1]} 24. Re4 {[%clk 0:00:04.2]} 24... f5 {[%clk 0:01:31.1]} 25.
Rf4 {[%clk 0:00:02.6]} 25... g6 {[%clk 0:01:25.6]} 26. g4 {[%clk 0:00:02.9]}
26... Bc7 {[%clk 0:01:22.2]} 27. Qd2 {[%clk 0:00:02.3]} 27... Bxf4 {[%clk
0:00:51.1]} 28. Qxf4 {[%clk 0:00:03.2]} 28... Kg8 {[%clk 0:00:49]} 29. g5 {[%clk
0:00:02.7]} 29... Re2 {[%clk 0:00:48.1]} 30. Qh4 {[%clk 0:00:02.2]} 30... b4
{[%clk 0:00:43.8]} 31. Bxb4 {[%clk 0:00:01.1]} 31... Rg2+ {[%clk 0:00:43.6]} 0-1

[Event "*** Titled Tuesday Blitz"]
[Site "Chess.com"]
[Date "2021.03.09"]
[Round "2"]
[White "anon481216"]
[Black "XDPS"]
[Result "0-1"]
[WhiteElo "2503"]
[BlackElo "2732"]
[TimeControl "180+1"]
[EndTime "10:18:21 PST"]
[Termination "XDPS won by resignation"]

1. d4 {[%clk 0:03:00.9]} 1... d5 {[%clk 0:02:59]} 2. c4 {[%clk 0:03:00.5]} 2...
e6 {[%clk 0:02:59]} 3. Nf3 {[%clk 0:03:00.9]} 3... a6 {[%clk 0:02:58.9]} 4. cxd5
{[%clk 0:02:59.5]} 4... exd5 {[%clk 0:02:58.9]} 5. Nc3 {[%clk 0:02:59.8]} 5...
Nf6 {[%clk 0:02:59.5]} 6. Bg5 {[%clk 0:03:00.1]} 6... Be6 {[%clk 0:02:59.8]} 7.
e3 {[%clk 0:02:59.9]} 7... Nbd7 {[%clk 0:02:59.9]} 8. Qb3 {[%clk 0:02:51.7]}
8... b5 {[%clk 0:02:58.2]} 9. Be2 {[%clk 0:02:49.4]} 9... Bd6 {[%clk 0:02:56.6]}
10. Bh4 {[%clk 0:02:43.7]} 10... O-O {[%clk 0:02:56.2]} 11. Bg3 {[%clk
0:02:43.4]} 11... Qe7 {[%clk 0:02:51.4]} 12. O-O {[%clk 0:02:41.2]} 12... Bxg3
{[%clk 0:02:50]} 13. hxg3 {[%clk 0:02:40.9]} 13... c5 {[%clk 0:02:47.2]} 14. Ne5
{[%clk 0:02:26.3]} 14... c4 {[%clk 0:02:06.2]} 15. Qd1 {[%clk 0:02:25.2]} 15...
b4 {[%clk 0:02:02.1]} 16. Na4 {[%clk 0:02:21.6]} 16... a5 {[%clk 0:01:50.4]} 17.
f4 {[%clk 0:02:13.9]} 17... Bf5 {[%clk 0:01:46.5]} 18. Bf3 {[%clk 0:02:12.1]}
18... Be4 {[%clk 0:01:45.7]} 19. g4 {[%clk 0:02:10.3]} 19... Bxf3 {[%clk
0:01:44.2]} 20. gxf3 {[%clk 0:02:09.6]} 20... Ra6 {[%clk 0:01:24.7]} 21. Kg2
{[%clk 0:02:04.1]} 21... Rc8 {[%clk 0:01:20.7]} 22. g5 {[%clk 0:01:58.9]} 22...
Ne8 {[%clk 0:01:20.2]} 23. Nxd7 {[%clk 0:01:57.9]} 23... Qxd7 {[%clk 0:01:17.5]}
24. Nc5 {[%clk 0:01:58.3]} 24... Rxc5 {[%clk 0:00:55]} 25. dxc5 {[%clk
0:01:58.1]} 25... h6 {[%clk 0:00:55.9]} 26. Qd4 {[%clk 0:01:44.3]} 26... Rg6
{[%clk 0:00:53.8]} 27. Rad1 {[%clk 0:01:33]} 27... hxg5 {[%clk 0:00:53.8]} 28.
f5 {[%clk 0:01:33]} 28... Qxf5 {[%clk 0:00:23.5]} 29. Qxd5 {[%clk 0:01:32.7]}
29... Qc8 {[%clk 0:00:18.8]} 30. Qd8 {[%clk 0:01:30.9]} 30... Qc6 {[%clk
0:00:17.9]} 31. Rd6 {[%clk 0:01:21.8]} 31... Rxd6 {[%clk 0:00:15.4]} 32. cxd6
{[%clk 0:01:20.4]} 32... Kh7 {[%clk 0:00:16]} 33. d7 {[%clk 0:01:15.8]} 33...
Nf6 {[%clk 0:00:16.3]} 34. Qxf6 {[%clk 0:01:06.4]} 34... Qxf6 {[%clk 0:00:16.1]}
35. Rd1 {[%clk 0:01:06.5]} 35... Qd8 {[%clk 0:00:16.6]} 36. Rd6 {[%clk
0:01:03.1]} 36... f6 {[%clk 0:00:15.8]} 37. e4 {[%clk 0:00:55]} 37... c3 {[%clk
0:00:15.9]} 38. bxc3 {[%clk 0:00:54.8]} 38... bxc3 {[%clk 0:00:16.8]} 39. Rc6
{[%clk 0:00:53.4]} 39... Qxd7 {[%clk 0:00:16.4]} 0-1

[Event "*** Titled Tuesday Blitz"]
[Site "Chess.com"]
[Date "2021.03.09"]
[Round "2"]
[White "IECS12"]
[Black "Nf3c5"]
[Result "0-1"]
[WhiteElo "2239"]
[BlackElo "2607"]
[TimeControl "180+1"]
[EndTime "10:18:21 PST"]
[Termination "Nf3c5 won on time"]

1. d4 {[%clk 0:03:00.9]} 1... Nf6 {[%clk 0:02:59.6]} 2. Bf4 {[%clk 0:02:59.8]}
2... d5 {[%clk 0:02:58.9]} 3. e3 {[%clk 0:03:00]} 3... c5 {[%clk 0:02:59.2]} 4.
Nc3 {[%clk 0:02:59.7]} 4... Nc6 {[%clk 0:03:00.1]} 5. Nb5 {[%clk 0:02:59.4]}
5... e5 {[%clk 0:02:39.5]} 6. dxe5 {[%clk 0:02:59.2]} 6... a6 {[%clk 0:02:31.9]}
7. exf6 {[%clk 0:02:11.8]} 7... axb5 {[%clk 0:02:29.6]} 8. Nf3 {[%clk 0:02:06]}
8... Qxf6 {[%clk 0:02:21.1]} 9. Bxb5 {[%clk 0:01:29.6]} 9... Qxb2 {[%clk
0:02:14.9]} 10. Rb1 {[%clk 0:01:29.4]} 10... Qc3+ {[%clk 0:02:14.5]} 11. Qd2
{[%clk 0:01:24.4]} 11... Qxd2+ {[%clk 0:02:07.3]} 12. Kxd2 {[%clk 0:01:25.3]}
12... Bd7 {[%clk 0:02:05]} 13. a4 {[%clk 0:01:13.5]} 13... Be7 {[%clk
0:01:56.1]} 14. Ne5 {[%clk 0:00:47.5]} 14... Nxe5 {[%clk 0:01:29.9]} 15. Bxe5
{[%clk 0:00:48.4]} 15... O-O-O {[%clk 0:01:11.2]} 16. Bxg7 {[%clk 0:00:36.2]}
16... Rhg8 {[%clk 0:01:10.6]} 17. Be5 {[%clk 0:00:36.1]} 17... Bf5 {[%clk
0:00:59.3]} 18. Bd3 {[%clk 0:00:13.3]} 18... Be6 {[%clk 0:00:47.1]} 19. Bg3
{[%clk 0:00:10.9]} 19... h5 {[%clk 0:00:46.3]} 20. h4 {[%clk 0:00:06.7]} 20...
c4 {[%clk 0:00:44.5]} 21. Be2 {[%clk 0:00:06.7]} 21... d4 {[%clk 0:00:44.7]} 22.
exd4 {[%clk 0:00:04.4]} 22... Rxd4+ {[%clk 0:00:45.6]} 23. Kc3 {[%clk
0:00:04.9]} 23... Bf6 {[%clk 0:00:45.1]} 24. Kb4 {[%clk 0:00:04.4]} 24... c3+
{[%clk 0:00:39.1]} 25. Ka3 {[%clk 0:00:02.2]} 25... Be7+ {[%clk 0:00:32.7]} 0-1

[Event "*** Titled Tuesday Blitz"]
[Site "Chess.com"]
[Date "2021.03.09"]
[Round "2"]
[White "AlexSuv"]
[Black "Semen_Khanin"]
[Result "0-1"]
[WhiteElo "2533"]
[BlackElo "2833"]
[TimeControl "180+1"]
[EndTime "10:18:26 PST"]
[Termination "Semen_Khanin won on time"]

1. d4 {[%clk 0:03:00.9]} 1... Nf6 {[%clk 0:02:59.5]} 2. c4 {[%clk 0:03:00.6]}
2... e6 {[%clk 0:02:59.1]} 3. Nc3 {[%clk 0:03:00.5]} 3... Bb4 {[%clk 0:02:58.4]}
4. e3 {[%clk 0:03:00.4]} 4... O-O {[%clk 0:02:57.5]} 5. Bd2 {[%clk 0:03:00.1]}
5... Re8 {[%clk 0:02:55.8]} 6. Nf3 {[%clk 0:02:59.7]} 6... d5 {[%clk 0:02:55.4]}
7. cxd5 {[%clk 0:02:59]} 7... exd5 {[%clk 0:02:55.2]} 8. Rc1 {[%clk 0:02:59.1]}
8... c5 {[%clk 0:02:52.9]} 9. a3 {[%clk 0:02:53.2]} 9... Bxc3 {[%clk 0:02:48.1]}
10. Bxc3 {[%clk 0:02:54.1]} 10... c4 {[%clk 0:02:48]} 11. Be2 {[%clk 0:02:50.9]}
11... Nc6 {[%clk 0:02:48.5]} 12. O-O {[%clk 0:02:30.5]} 12... Ne4 {[%clk
0:02:48.1]} 13. Nd2 {[%clk 0:02:28.3]} 13... Bf5 {[%clk 0:02:47.1]} 14. Nxe4
{[%clk 0:02:24.9]} 14... Bxe4 {[%clk 0:02:47.1]} 15. Re1 {[%clk 0:01:44.2]}
15... Qd6 {[%clk 0:02:41.1]} 16. Bg4 {[%clk 0:01:29.5]} 16... b5 {[%clk
0:02:39.3]} 17. f3 {[%clk 0:01:26.1]} 17... Bg6 {[%clk 0:02:36.6]} 18. b4 {[%clk
0:01:06.3]} 18... a5 {[%clk 0:02:36.7]} 19. bxa5 {[%clk 0:01:05.6]} 19... Qxa3
{[%clk 0:02:17.8]} 20. Bd7 {[%clk 0:01:03.8]} 20... Nxa5 {[%clk 0:02:17.9]} 21.
Bxb5 {[%clk 0:00:50.2]} 21... Reb8 {[%clk 0:02:08.9]} 22. Bxa5 {[%clk
0:00:49.3]} 22... Rxa5 {[%clk 0:01:50.9]} 23. Bd7 {[%clk 0:00:48.1]} 23... Rb2
{[%clk 0:01:45.4]} 24. Bh3 {[%clk 0:00:30.7]} 24... h5 {[%clk 0:01:36.8]} 25. e4
{[%clk 0:00:31]} 25... c3 {[%clk 0:01:29.2]} 26. Qd3 {[%clk 0:00:30]} 26... Rd2
{[%clk 0:01:24.8]} 27. Qxc3 {[%clk 0:00:28.6]} 27... Qxc3 {[%clk 0:01:22.7]} 28.
Rxc3 {[%clk 0:00:29.5]} 28... dxe4 {[%clk 0:01:23]} 29. fxe4 {[%clk 0:00:29.5]}
29... Bxe4 {[%clk 0:01:15.4]} 30. Rce3 {[%clk 0:00:18]} 30... f5 {[%clk
0:01:15.5]} 31. Rc3 {[%clk 0:00:11.2]} 31... Raa2 {[%clk 0:01:12]} 32. Rg3
{[%clk 0:00:10.6]} 32... Kf7 {[%clk 0:00:59.9]} 33. Rf1 {[%clk 0:00:07.8]} 33...
Kf6 {[%clk 0:00:57.6]} 34. Rc1 {[%clk 0:00:05.2]} 34... h4 {[%clk 0:00:56.4]}
35. Rb3 {[%clk 0:00:03.8]} 35... Bxg2 {[%clk 0:00:54.9]} 36. Rb6+ {[%clk
0:00:04]} 36... Kg5 {[%clk 0:00:55]} 0-1

[Event "*** Titled Tuesday Blitz"]
[Site "Chess.com"]
[Date "2021.03.09"]
[Round "2"]
[White "Kaiyrbekov"]
[Black "Cambek64"]
[Result "0-1"]
[WhiteElo "2089"]
[BlackElo "2399"]
[TimeControl "180+1"]
[EndTime "10:18:31 PST"]
[Termination "Cambek64 won on time"]

1. c4 {[%clk 0:03:00.9]} 1... Nf6 {[%clk 0:02:58.1]} 2. Nc3 {[%clk 0:03:01]}
2... c5 {[%clk 0:02:57.6]} 3. Nf3 {[%clk 0:03:01.2]} 3... Nc6 {[%clk 0:02:58]}
4. g3 {[%clk 0:03:01.3]} 4... d5 {[%clk 0:02:56.9]} 5. cxd5 {[%clk 0:03:00.8]}
5... Nxd5 {[%clk 0:02:57.4]} 6. Bg2 {[%clk 0:03:00.7]} 6... Nc7 {[%clk
0:02:57.2]} 7. O-O {[%clk 0:02:58]} 7... e5 {[%clk 0:02:57.4]} 8. d3 {[%clk
0:02:53]} 8... Be7 {[%clk 0:02:56.3]} 9. Qb3 {[%clk 0:02:42.3]} 9... O-O {[%clk
0:02:50]} 10. Ne1 {[%clk 0:02:33.5]} 10... Nd4 {[%clk 0:02:47.1]} 11. Qd1 {[%clk
0:02:26.9]} 11... Rb8 {[%clk 0:02:41.2]} 12. Nc2 {[%clk 0:02:26.4]} 12... Nxc2
{[%clk 0:02:31]} 13. Qxc2 {[%clk 0:02:25.9]} 13... Ne6 {[%clk 0:02:29.8]} 14.
Nd5 {[%clk 0:02:23.3]} 14... b6 {[%clk 0:02:29]} 15. e4 {[%clk 0:02:19.1]} 15...
Nd4 {[%clk 0:02:22.6]} 16. Qd2 {[%clk 0:02:16.8]} 16... Bg4 {[%clk 0:02:09.3]}
17. b3 {[%clk 0:02:13.4]} 17... Nf3+ {[%clk 0:02:04.9]} 18. Bxf3 {[%clk
0:02:12.9]} 18... Bxf3 {[%clk 0:02:05.4]} 19. Bb2 {[%clk 0:02:00.9]} 19... Bd6
{[%clk 0:02:04.5]} 20. Qe3 {[%clk 0:01:56.7]} 20... Bg4 {[%clk 0:02:02.5]} 21.
f4 {[%clk 0:01:47.5]} 21... exf4 {[%clk 0:01:51.9]} 22. gxf4 {[%clk 0:01:38.1]}
22... f5 {[%clk 0:01:47.1]} 23. Qg3 {[%clk 0:01:34]} 23... Rf7 {[%clk
0:01:45.3]} 24. Rf2 {[%clk 0:01:19.7]} 24... Rbb7 {[%clk 0:01:38.5]} 25. Rg2
{[%clk 0:01:17]} 25... Bf8 {[%clk 0:01:37.8]} 26. h3 {[%clk 0:00:50.5]} 26...
Bh5 {[%clk 0:01:35.7]} 27. Kh2 {[%clk 0:00:48.7]} 27... Bg6 {[%clk 0:01:29.5]}
28. Rag1 {[%clk 0:00:39.5]} 28... fxe4 {[%clk 0:01:27.9]} 29. dxe4 {[%clk
0:00:29.8]} 29... Bxe4 {[%clk 0:01:28.3]} 30. Nf6+ {[%clk 0:00:16]} 30... Rxf6
{[%clk 0:01:27.4]} 31. Bxf6 {[%clk 0:00:14.1]} 31... Qxf6 {[%clk 0:01:27.1]} 32.
Re2 {[%clk 0:00:13.3]} 32... Bc6 {[%clk 0:01:03.5]} 33. Re5 {[%clk 0:00:13.5]}
33... Bd6 {[%clk 0:00:59.7]} 34. Rg5 {[%clk 0:00:13.2]} 34... Bxf4 {[%clk
0:00:57.2]} 35. Rxg7+ {[%clk 0:00:05.5]} 35... Rxg7 {[%clk 0:00:57.4]} 0-1

[Event "*** Titled Tuesday Blitz"]
[Site "Chess.com"]
[Date "2021.03.09"]
[Round "2"]
[White "elohunter1999"]
[Black "sbouchet"]
[Result "1-0"]
[WhiteElo "2638"]
[BlackElo "2337"]
[TimeControl "180+1"]
[EndTime "10:18:34 PST"]
[Termination "elohunter1999 won by resignation"]

1. Nf3 {[%clk 0:03:00.9]} 1... c5 {[%clk 0:02:57.6]} 2. c4 {[%clk 0:02:59.6]}
2... Nc6 {[%clk 0:02:57.8]} 3. Nc3 {[%clk 0:02:59.3]} 3... g6 {[%clk 0:02:57.6]}
4. e3 {[%clk 0:02:58.6]} 4... Nf6 {[%clk 0:02:51.4]} 5. d4 {[%clk 0:02:58.4]}
5... cxd4 {[%clk 0:02:51.4]} 6. exd4 {[%clk 0:02:59.3]} 6... d5 {[%clk
0:02:51.6]} 7. cxd5 {[%clk 0:02:58.5]} 7... Nxd5 {[%clk 0:02:51.1]} 8. Qb3
{[%clk 0:02:57.8]} 8... Nxc3 {[%clk 0:02:43.4]} 9. Bc4 {[%clk 0:02:56.6]} 9...
e6 {[%clk 0:02:39.4]} 10. bxc3 {[%clk 0:02:55]} 10... Na5 {[%clk 0:02:26.8]} 11.
Bb5+ {[%clk 0:02:48.8]} 11... Bd7 {[%clk 0:02:27.2]} 12. Qa4 {[%clk 0:02:45.8]}
12... b6 {[%clk 0:02:06.4]} 13. Ne5 {[%clk 0:02:37.1]} 13... Bxb5 {[%clk
0:01:55.1]} 14. Qxb5+ {[%clk 0:02:36.7]} 14... Ke7 {[%clk 0:01:55.7]} 15. Ba3+
{[%clk 0:01:40.1]} 15... Kf6 {[%clk 0:01:55.4]} 16. Bxf8 {[%clk 0:01:32.9]}
16... Rxf8 {[%clk 0:01:50.9]} 17. Nd7+ {[%clk 0:01:31.2]} 17... Kg7 {[%clk
0:01:51.4]} 18. Nxf8 {[%clk 0:01:31.2]} 18... Qxf8 {[%clk 0:01:52.1]} 19. O-O
{[%clk 0:01:28]} 19... Rc8 {[%clk 0:01:52.7]} 20. Rac1 {[%clk 0:01:16.5]} 20...
Nc4 {[%clk 0:01:50.6]} 21. Rfe1 {[%clk 0:01:14.7]} 21... Qd6 {[%clk 0:01:42.3]}
22. h3 {[%clk 0:01:11.8]} 22... h5 {[%clk 0:01:40.6]} 23. Re2 {[%clk 0:00:58.2]}
23... Kg8 {[%clk 0:01:38.1]} 24. Rce1 {[%clk 0:00:57.6]} 24... Rc7 {[%clk
0:01:21.5]} 25. Qg5 {[%clk 0:00:39.3]} 25... a6 {[%clk 0:01:09.7]} 26. h4 {[%clk
0:00:25.5]} 26... b5 {[%clk 0:01:08.9]} 27. Re4 {[%clk 0:00:21]} 27... Nb6
{[%clk 0:01:05.3]} 28. Rxe6 {[%clk 0:00:17.2]} 28... fxe6 {[%clk 0:00:16.6]} 29.
Qxg6+ {[%clk 0:00:17.3]} 29... Kf8 {[%clk 0:00:17]} 30. Rxe6 {[%clk 0:00:16.5]}
30... Rf7 {[%clk 0:00:16.1]} 31. Rxd6 {[%clk 0:00:15.6]} 1-0

[Event "*** Titled Tuesday Blitz"]
[Site "Chess.com"]
[Date "2021.03.09"]
[Round "2"]
[White "chessdjw"]
[Black "sau6on"]
[Result "1-0"]
[WhiteElo "2738"]
[BlackElo "2494"]
[TimeControl "180+1"]
[EndTime "10:18:35 PST"]
[Termination "chessdjw won on time"]

1. d4 {[%clk 0:03:00.9]} 1... d5 {[%clk 0:02:59.5]} 2. c4 {[%clk 0:03:01.2]}
2... Nc6 {[%clk 0:02:59.6]} 3. Nc3 {[%clk 0:03:00.3]} 3... dxc4 {[%clk
0:02:59.5]} 4. Nf3 {[%clk 0:02:59.4]} 4... Nf6 {[%clk 0:02:59.1]} 5. e4 {[%clk
0:02:58.8]} 5... Bg4 {[%clk 0:02:57.8]} 6. Be3 {[%clk 0:02:59.2]} 6... e6 {[%clk
0:02:57.6]} 7. Bxc4 {[%clk 0:02:59.7]} 7... Bb4 {[%clk 0:02:55.3]} 8. Qd3 {[%clk
0:03:00]} 8... O-O {[%clk 0:02:35.3]} 9. Nd2 {[%clk 0:02:56]} 9... Qe7 {[%clk
0:01:35.6]} 10. a3 {[%clk 0:02:53.9]} 10... Ba5 {[%clk 0:01:20.7]} 11. Ba2
{[%clk 0:02:21.3]} 11... Rfd8 {[%clk 0:01:14.3]} 12. Nc4 {[%clk 0:02:21.2]}
12... Bb6 {[%clk 0:01:05.8]} 13. Nxb6 {[%clk 0:02:09.6]} 13... axb6 {[%clk
0:01:05.5]} 14. O-O {[%clk 0:02:06.1]} 14... Nxd4 {[%clk 0:00:54]} 15. Bxd4
{[%clk 0:01:54.4]} 15... e5 {[%clk 0:00:53.9]} 16. Nd5 {[%clk 0:01:37.4]} 16...
Nxd5 {[%clk 0:00:53.3]} 17. exd5 {[%clk 0:01:37.4]} 17... exd4 {[%clk
0:00:46.6]} 18. Qxd4 {[%clk 0:01:37.7]} 18... Qg5 {[%clk 0:00:34.8]} 19. h4
{[%clk 0:01:27.8]} 19... Qg6 {[%clk 0:00:23.8]} 20. Qf4 {[%clk 0:01:20.3]} 20...
Bh3 {[%clk 0:00:18.1]} 21. Qh2 {[%clk 0:01:20]} 21... Bf5 {[%clk 0:00:14.7]} 22.
Qxc7 {[%clk 0:01:15.6]} 22... Be4 {[%clk 0:00:12.1]} 23. g3 {[%clk 0:00:51.1]}
23... Qg4 {[%clk 0:00:07.6]} 24. f3 {[%clk 0:00:23.3]} 24... Bxf3 {[%clk
0:00:06.9]} 25. Kh2 {[%clk 0:00:18.4]} 1-0